bitfinex/quotes_ETHUSD_20230403
["timestamp","ask_amount","ask_price","bid_price","bid_amount"]
[1680480483659,11.05502463,1793.0,1792.9,0.09011078]
[1680480483964,11.9326305,1793.0,1792.9,0.09011078]
[1680480484124,11.05502463,1793.0,1792.9,0.09011078]
[1680480484531,11.93263514,1793.0,1792.9,0.09011078]
[1680480484843,12.07206514,1793.0,1792.9,0.09011078]
[1680480485050,11.05052306,1793.0,1792.9,0.08643605]
[1680480485661,11.92814778,1793.0,1792.9,0.08643605]
[1680480486372,8.92814778,1793.0,1792.9,0.08643605]
[1680480486577,1.69565417,1793.0,1792.9,0.08643605]
[1680480486778,1.69365417,1793.0,1792.9,0.08643605]
[1680480486927,1.69365417,1793.0,1792.9,0.17517966]
[1680480487829,1.69365417,1793.0,1792.9,0.45404966]
[1680480490033,1.13188466,1793.1,1792.9,1.15504966]
[1680480491146,0.58503226,1793.1,1792.9,1.15504966]
[1680480491475,1.55309307,1793.1,1792.9,1.15504966]
[1680480491678,1.46265698,1793.2,1793.0,0.11550497]
[1680480491837,2.43068544,1793.2,1793.0,0.11550497]
[1680480492260,2.43068544,1793.2,1793.0,0.39436497]
[1680480492582,0.58503226,1793.2,1793.1,0.701]
[1680480492734,0.58703226,1793.4,1793.2,0.83649]
[1680480492931,1.55292436,1793.4,1793.3,0.697]
[1680480493270,1.55292436,1793.4,1793.3,1.729006]
[1680480493469,0.13975747,1793.5,1793.3,1.729006]
[1680480496293,0.13975747,1793.5,1793.3,1.171376]
[1680480497014,0.13975747,1793.5,1793.2,4.9959]
[1680480497215,0.13975747,1793.5,1793.2,4.9939]
[1680480497397,0.13975747,1793.5,1793.2,5.27273]
[1680480497603,0.13975747,1793.5,1793.2,5.27473]
[1680480499491,6.00975747,1793.5,1793.2,0.008]
[1680480499685,6.75212322,1793.5,1793.2,0.006]
[1680480499905,6.61273322,1793.5,1793.1,0.28484]
[1680480500301,6.61273322,1793.5,1793.1,0.006]
[1680480500509,6.61273322,1793.5,1793.1,0.28484]
[1680480501050,6.61273322,1793.5,1793.1,0.84253]
[1680480503043,6.01175747,1793.5,1793.1,0.84253]
[1680480506027,0.14175747,1793.5,1793.1,0.84253]
[1680480506229,0.13975747,1793.5,1793.1,0.84253]
[1680480509237,0.14425904,1793.5,1793.1,0.83653]
[1680480513265,0.13975747,1793.5,1793.1,0.83653]
[1680480513458,0.14425904,1793.5,1793.1,0.83653]
[1680480513775,1.27323578,1793.5,1793.1,0.83653]
[1680480514879,1.27323578,1793.5,1793.1,0.27884]
[1680480516471,1.27073421,1793.5,1793.1,0.27884]
[1680480516676,1.27323578,1793.5,1793.1,0.27884]
[1680480517673,7.72812421,1793.5,1793.1,0.00555596]
[1680480517875,6.64281242,1793.4,1792.9,0.09199201]
[1680480518034,6.78421242,1793.4,1792.9,0.09199201]
[1680480518230,0.5,1793.3,1792.9,0.37085201]
[1680480518446,1.201,1793.3,1792.9,0.37086201]
[1680480518646,5.87,1793.2,1792.9,0.37086201]
[1680480518848,5.872,1793.2,1792.9,0.37086201]
[1680480519049,5.872,1793.2,1792.9,0.09199201]
[1680480519249,5.872,1793.2,1792.9,0.37086201]
[1680480523486,5.872,1793.2,1792.9,0.36530605]
[1680480523694,0.5872,1793.1,1792.9,0.36530605]
[1680480523855,5.872,1793.2,1792.9,0.36530605]
[1680480524759,5.872,1793.2,1792.9,0.08643605]
[1680480524981,5.872,1793.2,1792.9,0.36530605]
[1680480525890,5.876,1793.2,1792.9,0.36530605]
[1680480526194,5.872,1793.2,1792.9,0.08643605]
[1680480526492,0.5876,1793.1,1792.9,0.08643605]
[1680480527153,6.4576,1793.1,1792.9,0.08643605]
[1680480527488,7.1606,1793.1,1792.9,0.08643605]
[1680480529496,7.16110157,1793.1,1792.9,0.08643605]
[1680480529706,6.58611016,1793.0,1792.9,0.08643605]
[1680480529897,6.58811016,1793.0,1792.9,0.08643605]
[1680480530990,7.28911016,1793.0,1792.9,0.08643605]
[1680480531831,6.58811016,1793.0,1792.9,0.08643605]
[1680480534099,6.59011016,1793.0,1792.9,0.08643605]
[1680480534299,6.59211016,1793.0,1792.9,0.08643605]
[1680480534532,6.58811016,1793.0,1792.9,0.08643605]
[1680480540936,6.59008454,1793.0,1792.9,0.08643605]
[1680480541109,6.58608454,1793.0,1792.9,0.08643605]
[1680480541314,0.13870318,1793.0,1792.9,0.36530605]
[1680480541540,0.13670318,1793.0,1792.9,0.36530605]
[1680480542903,0.13670318,1793.0,1792.9,0.08643605]
[1680480552943,0.13670318,1793.0,1792.9,0.36530605]
[1680480553147,0.13670318,1793.0,1792.9,0.08643605]
[1680480553321,4.7741,1793.2,1792.9,0.92305605]
[1680480553521,10.78340157,1793.3,1793.0,0.09230561]
[1680480553755,0.002,1793.3,1793.1,0.83653]
[1680480553935,0.58503226,1793.4,1793.1,0.83653]
[1680480554136,1.55296939,1793.4,1793.1,0.83653]
[1680480555231,1.55296939,1793.4,1793.1,0.27884]
[1680480561910,1.55296939,1793.4,1793.1,0.27485355]
[1680480563407,1.55296939,1793.4,1793.1,0.35810991]
[1680480564369,1.55296939,1793.4,1793.1,0.27485355]
[1680480564858,1.55296939,1793.4,1793.1,0.83254355]
[1680480565005,0.67478973,1793.5,1793.1,0.83254355]
[1680480565209,0.08975747,1793.5,1793.1,0.83254355]
[1680480566260,0.08975747,1793.5,1793.2,3.48576728]
[1680480566506,0.08975747,1793.5,1793.3,0.34857673]
[1680480566710,0.08975747,1793.5,1793.4,0.8364]
[1680480567012,0.08975747,1793.5,1793.3,0.27881]
[1680480572181,0.08975747,1793.5,1793.3,0.83644]
[1680480572906,0.08649152,1793.5,1793.3,0.83644]
[1680480580252,0.08649152,1793.5,1793.3,0.920084]
[1680480580966,5.1563,1793.7,1793.3,0.920084]
[1680480583359,5.74133226,1793.7,1793.3,0.920084]
[1680480584130,5.88105952,1793.7,1793.3,0.920084]
[1680480588469,5.88105952,1793.7,1793.3,0.83644]
[1680480588772,5.88556109,1793.7,1793.3,0.83644]
[1680480588968,5.88105952,1793.7,1793.3,0.83644]
[1680480589542,0.72675952,1793.7,1793.3,0.83644]
[1680480589746,0.72475952,1793.7,1793.3,0.83644]
[1680480591257,0.72475952,1793.7,1793.3,1.031611]
[1680480593044,0.72475952,1793.7,1793.3,3.81937828]
[1680480597175,0.58503226,1793.6,1793.3,3.81937828]
[1680480597383,1.5528304,1793.6,1793.3,3.81937828]
[1680480598463,1.60238424,1793.7,1793.3,3.81937828]
[1680480598650,0.96779791,1793.6,1793.3,3.81937828]
[1680480599138,1.55283017,1793.6,1793.3,3.81937828]
[1680480605666,0.58503226,1793.6,1793.3,3.81937828]
[1680480606041,1.55283021,1793.6,1793.3,3.81937828]
[1680480606767,1.55283021,1793.6,1793.3,0.83644]
[1680480607173,2.43045493,1793.6,1793.3,0.83644]
[1680480609212,1.55283021,1793.5,1793.3,0.83644]
[1680480609378,0.58503226,1793.5,1793.3,0.83644]
[1680480626473,0.58503226,1793.5,1793.3,0.78644]
[1680480627361,0.82852791,1793.5,1793.3,0.78644]
[1680480633098,0.002,1793.7,1793.5,6.87]
[1680480633295,0.69506911,1794.1,1793.6,7.3053254]
[1680480633505,0.69506911,1794.1,1793.7,0.73053254]
[1680480633646,0.69506911,1794.1,1793.9,1.95104]
[1680480633997,0.11000001,1794.1,1793.9,4.73880728]
[1680480634342,0.11000001,1794.1,1793.9,4.74080728]
[1680480634592,0.11000001,1794.1,1793.9,4.74436324]
[1680480634847,0.11000001,1794.1,1794.0,0.47443632]
[1680480635092,0.11000001,1794.1,1794.0,4.0983136]
[1680480635284,0.11000001,1794.1,1794.0,4.10386956]
[1680480636790,0.11000001,1794.1,1794.0,1.31610228]
[1680480638111,0.11000001,1794.1,1794.0,1.31054632]
[1680480644821,0.11000001,1794.1,1794.0,4.0983136]
[1680480645020,0.11000001,1794.1,1794.0,4.10386956]
[1680480653417,0.11000001,1794.1,1794.0,0.28425596]
[1680480653616,0.81100001,1794.1,1794.0,0.83611]
[1680480653831,0.81100001,1794.1,1794.0,0.2787]
[1680480656026,0.80709702,1794.1,1794.0,0.2807]
[1680480656204,0.80709702,1794.1,1794.0,0.2787]
[1680480657905,0.80709702,1794.1,1793.9,0.27871]
[1680480659041,0.80709702,1794.1,1793.9,0.83615]
[1680480660903,0.10609702,1794.1,1793.9,0.83615]
[1680480663334,0.10609702,1794.1,1793.9,1.031255]
[1680480666308,0.10609702,1794.1,1794.0,2.78776728]
[1680480666508,0.10609702,1794.1,1794.0,3.62387728]
[1680480668461,0.10609702,1794.1,1794.0,0.83611]
[1680480669434,0.00609702,1794.1,1794.0,0.83611]
[1680480669820,0.00609702,1794.1,1793.7,4.99105596]
[1680480670049,0.00609702,1794.1,1794.0,0.2787]
[1680480670344,0.00609702,1794.1,1794.0,0.83611]
[1680480682591,0.00609702,1794.1,1793.9,0.55743]
[1680480682756,0.00609702,1794.1,1793.9,0.83613]
[1680480683441,0.696,1794.0,1793.7,1.45449408]
[1680480683644,0.7662097,1794.0,1793.6,1.72572812]
[1680480683871,0.7662097,1794.0,1793.7,0.27873]
[1680480684467,0.7662097,1794.0,1793.6,1.44694812]
[1680480684672,0.701,1793.8,1793.5,1.45452408]
[1680480684867,0.701,1793.8,1793.5,1.44696812]
[1680480685263,0.0701,1793.7,1793.4,1.44697812]
[1680480685421,0.0701,1793.7,1793.3,33.70242172]
[1680480685618,0.0701,1793.7,1793.3,2.01017408]
[1680480685916,0.0701,1793.7,1793.3,2.00461812]
[1680480688086,0.0701,1793.7,1793.3,0.83642]
[1680480691016,0.009,1793.8,1793.4,2.78776728]
[1680480691315,0.009,1793.9,1793.5,1.95146]
[1680480691510,0.00609702,1794.1,1793.5,9.52632728]
[1680480691714,0.00609702,1794.1,1793.5,9.53188324]
[1680480691896,0.00609702,1794.1,1793.7,0.83623]
[1680480707859,0.00609702,1794.1,1793.7,3.62399728]
[1680480719103,0.01115,1794.0,1793.7,3.62399728]
[1680480727222,0.01115,1794.0,1793.9,0.83616]
[1680480729372,0.01115,1794.0,1793.9,3.62392728]
[1680480729700,0.01115,1794.0,1793.9,4.0985696]
[1680480734323,0.01115,1794.0,1793.9,4.0985696]
[1680480742836,0.00844339,1794.0,1793.9,4.0985696]
[1680480758812,0.00844339,1794.0,1793.9,3.62392728]
[1680480760228,0.00844339,1794.0,1793.9,0.83616]
[1680480760435,0.00844339,1794.0,1793.8,0.28073]
[1680480760637,0.701,1793.9,1793.6,1.73328408]
[1680480760841,0.701,1793.9,1793.8,0.27873]
[1680480762244,0.70944339,1794.0,1793.8,0.27873]
[1680480762427,2.34080913,1794.0,1793.8,0.27873]
[1680480769566,2.24080913,1794.0,1793.8,0.27873]
[1680480773380,0.699,1793.9,1793.5,0.56311596]
[1680480773675,0.701,1793.8,1793.6,0.83629]
[1680480782096,0.699,1793.9,1793.6,0.83629]
[1680480783811,0.699,1793.9,1793.6,3.62405728]
[1680480786326,0.88661052,1793.9,1793.6,0.83629]
[1680480786476,0.90932751,1793.9,1793.6,0.27876]
[1680480789227,0.21032751,1793.9,1793.6,0.27876]
[1680480790737,0.698,1793.8,1793.4,0.56314596]
[1680480791033,0.698,1793.8,1793.5,0.27877]
[1680480791331,0.0698,1793.7,1793.4,0.56314596]
[1680480791649,0.698,1793.8,1793.4,0.56314596]
[1680480791650,0.698,1793.8,1793.5,0.27877]
[1680480792788,0.698,1793.8,1793.5,0.83633]
[1680480793133,5.23512751,1793.9,1793.5,0.83633]
[1680480795341,0.699,1793.7,1793.4,0.00355596]
[1680480795495,0.698,1793.5,1793.4,0.27879]
[1680480795834,0.698,1793.5,1793.4,0.2788]
[1680480796486,0.698,1793.5,1793.2,0.28436596]
[1680480796686,0.698,1793.5,1793.3,0.27881]
[1680480796940,0.698,1793.5,1793.2,0.28436596]
[1680480797320,0.698,1793.5,1793.2,0.28236596]
[1680480797506,0.698,1793.5,1793.2,0.83647]
[1680480799034,0.84489,1793.5,1793.2,0.27882]
[1680480800056,0.02271699,1793.4,1793.1,0.28638596]
[1680480800195,0.02271699,1793.4,1793.0,0.00555596]
[1680480800392,0.02271699,1793.4,1793.1,0.27884]
[1680480800596,7.79593769,1793.4,1793.1,0.27884]
[1680480800822,7.79793769,1793.4,1793.1,0.27884]
[1680480802442,7.79793769,1793.4,1793.1,0.27883]
[1680480803087,7.79793769,1793.4,1793.1,0.83652]
[1680480804290,7.80493769,1793.4,1793.1,0.83652]
[1680480804596,6.65049377,1793.3,1793.1,0.83652]
[1680480804794,6.65249377,1793.3,1793.1,0.83652]
[1680480805739,6.65549377,1793.3,1793.1,0.83652]
[1680480806047,6.65249377,1793.3,1793.1,0.83652]
[1680480806597,6.65249377,1793.3,1793.1,0.27883]
[1680480806798,0.66524938,1793.2,1793.1,0.27883]
[1680480808227,0.66524938,1793.2,1793.0,0.00555596]
[1680480808430,0.66524938,1793.2,1792.9,0.09199201]
[1680480808738,9.53524938,1793.2,1792.9,0.08643605]
[1680480808902,9.53724938,1793.2,1792.9,0.08643605]
[1680480809100,0.95372494,1793.1,1792.9,0.08643605]
[1680480811438,6.82372494,1793.1,1792.9,0.08643605]
[1680480811638,6.82572494,1793.1,1792.9,0.08643605]
[1680480816749,6.82572494,1793.1,1792.9,0.36530605]
[1680480816935,6.82572494,1793.1,1792.9,0.08643605]
[1680480817155,0.68257249,1793.0,1792.9,0.08643605]
[1680480818140,0.68257249,1793.0,1792.9,0.36530605]
[1680480818362,6.82572494,1793.1,1792.9,0.36530605]
[1680480820175,6.8237043,1793.1,1792.9,0.36530605]
[1680480820533,6.8237043,1793.1,1792.9,0.27887]
[1680480822273,6.8267043,1793.1,1792.9,0.27887]
[1680480822480,6.8237043,1793.1,1792.9,0.27887]
[1680480827258,0.68237043,1793.0,1792.9,0.27887]
[1680480827850,6.8237043,1793.1,1792.9,0.27887]
[1680480828461,6.8307043,1793.1,1792.9,0.27887]
[1680480828792,6.8237043,1793.1,1792.9,0.27887]
[1680480830100,6.8237043,1793.1,1792.8,0.27888]
[1680480833507,6.8307043,1793.1,1792.8,0.27888]
[1680480833809,6.8237043,1793.1,1792.8,0.27888]
[1680480834370,6.8237043,1793.1,1792.8,0.83666]
[1680480834566,0.002,1793.1,1792.8,0.83666]
[1680480834766,19.04966637,1793.2,1792.8,0.83666]
[1680480834767,13.45751699,1793.2,1792.8,0.83666]
[1680480835011,13.46451699,1793.2,1792.8,0.83666]
[1680480835173,13.45751699,1793.2,1792.8,0.83666]
[1680480838100,13.46451699,1793.2,1792.8,0.83666]
[1680480838431,13.45751699,1793.2,1792.8,0.83666]
[1680480839828,13.46451699,1793.2,1792.8,0.83666]
[1680480839971,13.45751699,1793.2,1792.8,0.83666]
[1680480842612,13.45448122,1793.2,1792.8,0.83666]
[1680480844687,13.45448122,1793.2,1792.8,0.84221596]
[1680480848750,0.002,1793.2,1792.8,5.82178177]
[1680480849041,1.2860691,1793.6,1792.9,2.78776728]
[1680480849042,15.6818,1793.5,1792.9,2.78776728]
[1680480849207,15.6838,1793.5,1793.1,0.8365]
[1680480852438,16.25316626,1793.5,1793.1,0.8365]
[1680480852641,16.25316626,1793.5,1793.1,1.14906441]
[1680480853441,16.25316626,1793.5,1793.1,1.15262037]
[1680480855209,4.74,1793.5,1793.1,1.15262037]
[1680480855407,3.002,1793.6,1793.1,3.02381849]
[1680480855626,0.002,1793.7,1793.1,1.85562037]
[1680480855830,20.43328104,1793.8,1793.3,0.8364]
[1680480856347,26.30328104,1793.8,1793.3,0.8364]
[1680480859066,26.31028104,1793.8,1793.3,0.8364]
[1680480859269,26.30328104,1793.8,1793.3,0.8364]
[1680480861162,25.71821194,1793.8,1793.3,0.8364]
[1680480862437,28.654346,1793.8,1793.3,0.8364]
[1680480867167,0.699,1793.7,1793.3,0.8364]
[1680480867370,0.69674794,1793.7,1793.3,0.84195596]
[1680480869407,0.69674794,1793.7,1793.3,0.8384]
[1680480869629,0.06967479,1793.6,1793.3,0.84195596]
[1680480869914,3.69674794,1793.7,1793.3,0.84195596]
[1680480870107,0.69674794,1793.7,1793.3,0.84195596]
[1680480872707,0.69674794,1793.7,1793.3,0.83995596]
[1680480872914,6.56674794,1793.7,1793.3,0.84195596]
[1680480873102,6.56874794,1793.7,1793.2,0.00555596]
[1680480873318,0.698,1793.5,1793.2,0.27882]
[1680480873477,0.698,1793.5,1793.2,0.28437596]
[1680480876741,0.698,1793.5,1793.2,0.84203596]
[1680480877141,0.698,1793.5,1793.2,0.83412306]
[1680480881278,0.698,1793.5,1793.2,0.27646306]
[1680480881580,0.0698,1793.4,1793.2,0.27646306]
[1680480885286,5.9398,1793.4,1793.2,0.27883]
[1680480885486,5.9418,1793.4,1793.2,0.27883]
[1680480890398,5.9488,1793.4,1793.2,0.27883]
[1680480890567,5.9418,1793.4,1793.2,0.27883]
[1680480890771,0.59418,1793.3,1793.2,0.27883]
[1680480897239,0.59418,1793.3,1793.1,0.27883]
[1680480898555,6.51754633,1793.4,1793.1,0.27883]
[1680480899454,6.51754633,1793.4,1793.1,0.83652]
[1680480900469,6.50944387,1793.4,1793.1,0.83652]
[1680480900626,6.50744387,1793.4,1793.1,0.83652]
[1680480901364,6.569,1793.3,1793.1,0.27883]
[1680480901527,0.6569,1793.2,1793.1,0.27883]
[1680480901722,6.571,1793.3,1793.1,0.27883]
[1680480902922,0.701,1793.3,1793.1,0.27883]
[1680480903158,0.002,1793.4,1793.1,0.83652]
[1680480903343,22.3862,1793.5,1793.1,0.83652]
[1680480905478,22.93903981,1793.5,1793.1,0.83652]
[1680480905871,22.94603981,1793.5,1793.1,0.83652]
[1680480906178,22.93903981,1793.5,1793.1,0.83652]
[1680480906571,25.73020988,1793.5,1793.1,0.83652]
[1680480912207,25.03820988,1793.5,1793.1,0.83652]
[1680480912406,25.03120988,1793.5,1793.1,0.83652]
[1680480913229,0.002,1793.5,1793.1,0.83652]
[1680480913529,10.83766088,1793.6,1793.1,0.83652]
[1680480913820,3.0,1793.5,1793.1,0.83652]
[1680480918939,3.5850691,1793.5,1793.1,0.83652]
[1680480926727,3.0,1793.5,1793.1,0.83652]
[1680480926903,3.0,1793.5,1793.2,0.083652]
[1680480927100,3.0,1793.5,1793.3,0.83644]
[1680480928540,3.71,1793.6,1793.3,0.83644]
[1680480928822,3.701,1793.6,1793.3,0.83644]
[1680480929026,3.0,1793.6,1793.3,0.83644]
[1680480929228,2.99684446,1793.6,1793.3,1.0399792]
[1680480930303,2.94684446,1793.6,1793.3,1.0399792]
[1680480930518,0.5870691,1793.7,1793.3,1.0399792]
[1680480930716,1.55278669,1793.7,1793.3,1.0399792]
[1680480932342,1.55278669,1793.7,1793.4,0.31172161]
[1680480932498,4.55278669,1793.7,1793.5,0.27878]
[1680480932699,3.5850691,1793.7,1793.5,0.27878]
[1680480934613,3.5850691,1793.7,1793.4,0.86931161]
[1680480934801,3.5850691,1793.7,1793.4,1.14809161]
[1680480936640,3.0,1793.7,1793.4,1.14809161]
[1680480936846,3.5850691,1793.7,1793.4,1.14809161]
[1680480939261,3.5900691,1793.7,1793.4,1.14478022]
[1680480939476,3.5900691,1793.7,1793.4,0.58719022]
[1680480939477,3.5920691,1793.7,1793.4,0.58719022]
[1680480941433,4.79160757,1793.7,1793.4,0.58719022]
[1680480941725,4.79160757,1793.7,1793.4,0.30841022]
[1680480942058,5.48960757,1793.7,1793.4,0.30841022]
[1680480942366,5.49160757,1793.7,1793.4,0.30841022]
[1680480943262,5.49160757,1793.7,1793.4,0.58721022]
[1680480943462,0.54916076,1793.6,1793.4,0.58721022]
[1680480948936,0.54916076,1793.6,1793.4,0.30841022]
[1680480949197,0.54916076,1793.6,1793.4,0.58720022]
[1680480950006,6.569,1793.5,1793.4,0.30841022]
[1680480950211,9.571,1793.5,1793.4,0.30841022]
[1680480950411,12.55785377,1793.5,1793.0,0.55772]
[1680480950702,13.04171764,1793.5,1793.1,0.27884]
[1680480951188,13.04171764,1793.5,1793.2,0.26907029]
[1680480952067,0.699,1793.4,1793.2,0.26907029]
[1680480952267,6.569,1793.4,1793.1,0.27884]
[1680480952565,0.6569,1793.3,1793.1,0.27884]
[1680480957482,6.5269,1793.3,1792.9,0.55775]
[1680480957789,6.5289,1793.3,1793.1,0.27884]
[1680480959229,6.5289,1793.3,1793.2,0.26907029]
[1680480959416,6.5289,1793.3,1793.2,0.54790029]
[1680480960095,6.5289,1793.3,1793.2,0.26907029]
[1680480960508,6.5289,1793.3,1793.2,0.54790029]
[1680480962986,6.5289,1793.3,1793.2,0.26907029]
[1680480963187,6.5289,1793.3,1793.1,0.27883]
[1680480963385,0.65289,1793.2,1793.1,0.27883]
[1680480963629,6.5289,1793.3,1793.1,0.27883]
[1680480964417,0.4112172,1793.2,1793.1,0.27883]
[1680480966034,0.4112172,1793.2,1793.0,0.83656]
[1680480966235,0.4112172,1793.2,1793.0,0.27884]
[1680480971544,0.4112172,1793.2,1792.9,0.83661]
[1680480971751,0.4112172,1793.2,1793.0,0.27885]
[1680480978992,0.4112172,1793.2,1793.0,0.27885]
[1680480979566,0.4112172,1793.2,1792.9,0.55775]
[1680480979722,0.4112172,1793.2,1792.9,0.27886]
[1680480983213,0.4112172,1793.2,1792.9,0.83661]
[1680481003727,0.4112172,1793.2,1792.9,0.27886]
[1680481004039,8.27751169,1793.2,1792.9,0.27886]
[1680481004332,8.27951169,1793.2,1792.9,0.27886]
[1680481007305,8.28651169,1793.2,1792.9,0.27886]
[1680481007849,8.27951169,1793.2,1792.9,0.27886]
[1680481013249,8.28651169,1793.2,1792.9,0.27886]
[1680481013454,0.82865117,1793.1,1792.9,0.27886]
[1680481013628,8.27951169,1793.2,1792.9,0.27886]
[1680481014227,0.4132172,1793.2,1792.9,0.83661]
[1680481014433,0.4112172,1793.2,1792.9,0.83661]
[1680481044410,0.51622973,1793.2,1792.9,0.83661]
[1680481056692,0.51622973,1793.2,1792.9,2.00480812]
[1680481059266,0.51622973,1793.2,1793.0,2.78776728]
[1680481059420,0.51622973,1793.2,1793.1,1.11530673]
[1680481065251,0.51622973,1793.2,1793.1,3.90307401]
[1680481065505,0.51358896,1793.2,1793.1,12.93549377]
[1680481065622,0.51358896,1793.2,1793.1,17.92559377]
[1680481066075,0.51358896,1793.2,1793.1,19.09210802]
[1680481066292,0.007,1793.8,1793.1,18.61813735]
[1680481066447,1.67115469,1793.9,1793.4,4.73955]
[1680481066631,0.007,1793.9,1793.4,7.52731728]
[1680481066830,0.007,1793.9,1793.4,7.52931728]
[1680481067258,0.007,1793.9,1793.4,12.51741728]
[1680481067461,0.541401,1793.8,1793.4,12.51741728]
[1680481067647,0.541401,1793.8,1793.5,1.25174173]
[1680481067984,0.541401,1793.8,1793.6,1.95136]
[1680481068337,0.007,1793.9,1793.6,1.95136]
[1680481072680,2.39191917,1794.0,1793.6,4.73912728]
[1680481073246,0.53928285,1793.9,1793.6,4.73912728]
[1680481073596,0.54628285,1793.9,1793.8,0.8362]
[1680481079863,0.54628285,1793.9,1793.7,0.47391273]
[1680481080191,0.54628285,1793.9,1793.8,0.8362]
[1680481083552,0.54628285,1793.9,1793.6,2.78976728]
[1680481083753,0.53928285,1793.9,1793.8,0.27873]
[1680481083951,0.54628285,1793.9,1793.8,0.27873]
[1680481087796,0.54628285,1793.9,1793.8,0.8362]
[1680481090379,0.53637451,1793.9,1793.8,0.8362]
[1680481092325,0.53637451,1793.9,1793.8,1.031316]
[1680481093219,1.65891059,1794.1,1793.8,1.031316]
[1680481094344,0.49355793,1794.0,1793.8,1.031316]
[1680481097017,0.49355793,1794.0,1793.8,3.81908328]
[1680481097533,0.49355793,1794.0,1793.8,3.82463924]
[1680481097729,0.49355793,1794.0,1793.9,2.33350392]
[1680481098339,0.49355793,1794.0,1793.9,2.33905988]
[1680481106710,0.49355793,1794.0,1793.9,5.12482716]
[1680481106915,0.49355793,1794.0,1793.9,5.12882716]
[1680481107616,0.49355793,1794.0,1793.9,5.12682716]
[1680481107819,0.49355793,1794.0,1793.9,5.12882716]
[1680481110633,0.49048697,1794.0,1793.9,5.12882716]
[1680481110824,0.49048697,1794.0,1793.9,5.1232712]
[1680481117576,0.49048697,1794.0,1793.9,5.12682716]
[1680481117981,0.49048697,1794.0,1793.9,5.1232712]
[1680481130306,0.44048697,1794.0,1793.9,5.1232712]
[1680481131663,0.44048697,1794.0,1793.9,1.95304]
[1680481131895,0.44048697,1794.0,1793.9,1.95104]
[1680481148285,0.44048697,1794.0,1793.9,0.27872]
[1680481148485,1.83948697,1794.0,1793.6,3.19295336]
[1680481148645,1.14148697,1794.0,1793.8,0.27873]
[1680481148849,1.3131487,1793.9,1793.7,0.27873]
[1680481149039,0.699,1793.8,1793.7,0.27873]
[1680481149239,1.19913972,1793.8,1793.7,0.27873]
[1680481154779,0.50013972,1793.8,1793.7,0.27873]
[1680481155342,0.8121487,1793.9,1793.7,0.27873]
[1680481156284,0.49798748,1793.8,1793.7,0.27873]
[1680481157488,0.49798748,1793.8,1793.4,31.68425002]
[1680481157489,1.53101362,1793.8,1793.4,31.68425002]
[1680481157674,0.699,1793.7,1793.4,1.45225002]
[1680481157847,0.699,1793.7,1793.4,2.00429406]
[1680481159873,0.699,1793.7,1793.4,4.79206134]
[1680481160073,0.699,1793.9,1793.6,0.83629]
[1680481165124,0.699,1793.9,1793.6,0.27876]
[1680481165430,0.699,1793.9,1793.6,0.83629]
[1680481169418,0.49545768,1793.8,1793.6,0.83629]
[1680481170254,0.699,1793.9,1793.6,0.83629]
[1680481170456,0.839,1793.9,1793.6,0.83629]
[1680481173363,0.839,1793.9,1793.5,1.11512]
[1680481173364,0.839,1793.9,1793.5,0.55756]
[1680481173513,0.839,1793.9,1793.5,0.27876]
[1680481173854,0.839,1793.9,1793.4,3.62413728]
[1680481174053,0.97836,1793.9,1793.4,0.27878]
[1680481174261,0.701,1793.7,1793.4,0.27878]
[1680481176227,0.701,1793.7,1793.4,0.83638]
[1680481179352,0.72371699,1793.6,1793.3,1.17546002]
[1680481179518,0.699,1793.4,1793.3,1.44670406]
[1680481179718,0.699,1793.4,1793.3,0.2788]
[1680481180139,0.699,1793.5,1793.3,0.2788]
[1680481180346,0.8412717,1793.5,1793.3,0.2788]
[1680481181059,0.8412717,1793.5,1793.3,0.83643]
[1680481181719,0.1422717,1793.5,1793.3,0.83643]
[1680481181918,0.02271699,1793.6,1793.3,0.83643]
[1680481184360,0.48948034,1793.5,1793.3,0.83643]
[1680481187197,1.19048034,1793.5,1793.3,0.2788]
[1680481187345,0.698,1793.4,1793.2,1.16790406]
[1680481187548,0.0698,1793.3,1793.0,1.17546002]
[1680481187746,0.0698,1793.3,1793.0,0.27885]
[1680481188173,0.0698,1793.3,1792.9,0.8366]
[1680481188481,0.0698,1793.3,1792.8,31.50546002]
[1680481188482,6.571,1793.1,1792.8,0.10755596]
[1680481188689,0.6571,1793.0,1792.8,0.1]
[1680481189189,0.65462001,1793.0,1792.8,0.1]
[1680481189393,6.52462001,1793.0,1792.8,0.1]
[1680481189753,6.569,1792.9,1792.8,0.1]
[1680481189900,7.377505,1792.9,1792.8,0.1]
[1680481191005,7.40022199,1792.9,1792.8,0.1]
[1680481191299,10.53965199,1792.9,1792.8,0.1]
[1680481191487,10.40022199,1792.9,1792.8,0.1]
[1680481192092,13.41798927,1792.9,1792.8,0.1]
[1680481193073,10.63022199,1792.9,1792.8,0.1]
[1680481193665,11.1867197,1792.9,1792.8,0.1]
[1680481196209,14.67548698,1792.9,1792.8,0.1]
[1680481196394,14.82191698,1792.9,1792.8,0.1]
[1680481197306,14.68248698,1792.9,1792.8,0.1]
[1680481197619,11.8947197,1792.9,1792.8,0.1]
[1680481199405,12.45354147,1792.9,1792.8,0.1]
[1680481199918,12.59297147,1792.9,1792.8,0.1]
[1680481200574,12.45354147,1792.9,1792.8,0.1]
[1680481201385,12.59297147,1792.9,1792.8,0.1]
[1680481202689,17.90535875,1792.9,1792.7,0.1]
[1680481202899,15.74306443,1792.8,1792.7,0.1]
[1680481203086,16.16339443,1792.8,1792.7,0.1]
[1680481203513,15.88450443,1792.8,1792.7,0.1]
[1680481203821,26.46230443,1792.8,1792.7,0.1]
[1680481204181,26.32286443,1792.8,1792.7,0.1]
[1680481204746,26.46230443,1792.8,1792.7,0.1]
[1680481205225,26.32986443,1792.8,1792.7,0.1]
[1680481205383,26.32286443,1792.8,1792.7,0.1]
[1680481206832,26.32986443,1792.8,1792.7,0.1]
[1680481207177,26.32286443,1792.8,1792.7,0.1]
[1680481210356,25.62386443,1792.8,1792.7,0.1]
[1680481212821,25.76330443,1792.8,1792.7,0.1]
[1680481213052,25.62886443,1792.8,1792.7,0.1]
[1680481213233,25.62386443,1792.8,1792.7,0.1]
[1680481214369,26.13079904,1792.8,1792.7,0.04930654]